[Event "Late-Titled-Tuesday-Blitz-August-29-2023"]
[Site "Chess.com"]
[Date "2023.08.29"]
[Round "9"]
[White "only_strong_moves"]
[Black "WildBizon"]
[Result "0-1"]
[WhiteElo "2544"]
[BlackElo "2722"]
[TimeControl "180+1"]
[EndTime "15:42:49 PDT"]
[Termination "WildBizon won on time"]

1. e4 {[%clk 0:03:00.9]} 1... c6 {[%clk 0:02:56.4]} 2. d4 {[%clk 0:03:00.6]}
2... d5 {[%clk 0:02:56.5]} 3. e5 {[%clk 0:03:01.2]} 3... Bf5 {[%clk 0:02:55.8]}
4. Nf3 {[%clk 0:03:00.8]} 4... e6 {[%clk 0:02:55.8]} 5. Be2 {[%clk 0:03:01.3]}
5... Ne7 {[%clk 0:02:55.5]} 6. O-O {[%clk 0:03:01.1]} 6... h6 {[%clk 0:02:55.8]}
7. Nbd2 {[%clk 0:03:00.4]} 7... Nd7 {[%clk 0:02:56.1]} 8. Nb3 {[%clk 0:03:00.7]}
8... Bh7 {[%clk 0:02:55.2]} 9. a4 {[%clk 0:02:59.4]} 9... a5 {[%clk 0:02:54.7]}
10. Bd2 {[%clk 0:02:58.4]} 10... Nf5 {[%clk 0:02:51.7]} 11. Rc1 {[%clk
0:02:55.5]} 11... Be7 {[%clk 0:02:51.3]} 12. Ne1 {[%clk 0:02:41.2]} 12... O-O
{[%clk 0:02:49.6]} 13. f4 {[%clk 0:02:35.7]} 13... f6 {[%clk 0:02:47]} 14. Nd3
{[%clk 0:02:12.3]} 14... fxe5 {[%clk 0:02:45.9]} 15. fxe5 {[%clk 0:02:07.6]}
15... Bg5 {[%clk 0:02:45.9]} 16. Bg4 {[%clk 0:02:02.6]} 16... Bxd2 {[%clk
0:02:38.3]} 17. Qxd2 {[%clk 0:02:03.5]} 17... Nb6 {[%clk 0:02:26.7]} 18. Ndc5
{[%clk 0:01:35.8]} 18... Nc4 {[%clk 0:02:24.9]} 19. Qc3 {[%clk 0:01:14.5]} 19...
Qe7 {[%clk 0:02:24.5]} 20. Nd2 {[%clk 0:00:36.8]} 20... Nce3 {[%clk 0:01:57.4]}
21. Bxf5 {[%clk 0:00:36.5]} 21... Nxf5 {[%clk 0:01:55.7]} 22. Rf2 {[%clk
0:00:23.9]} 22... b6 {[%clk 0:01:55.8]} 23. Nd3 {[%clk 0:00:22.8]} 23... Rac8
{[%clk 0:01:55.9]} 24. Rcf1 {[%clk 0:00:21.1]} 24... c5 {[%clk 0:01:36]} 25.
dxc5 {[%clk 0:00:18.2]} 25... bxc5 {[%clk 0:01:36.8]} 26. Qxa5 {[%clk
0:00:16.2]} 26... c4 {[%clk 0:01:37.4]} 27. Nf4 {[%clk 0:00:12.3]} 27... Ne3
{[%clk 0:01:37.8]} 28. Re1 {[%clk 0:00:04.1]} 28... Nxc2 {[%clk 0:01:36.8]} 29.
Rc1 {[%clk 0:00:04.7]} 29... Nd4 {[%clk 0:01:29]} 30. Qb6 {[%clk 0:00:05.1]}
30... Rxf4 {[%clk 0:01:20.7]} 31. Rxf4 {[%clk 0:00:06]} 31... Ne2+ {[%clk
0:01:20.8]} 32. Kh1 {[%clk 0:00:06.7]} 32... Nxf4 {[%clk 0:01:20.3]} 33. Rf1
{[%clk 0:00:06.6]} 33... Rf8 {[%clk 0:01:17.2]} 34. a5 {[%clk 0:00:07.1]} 34...
Qg5 {[%clk 0:01:14.5]} 35. g3 {[%clk 0:00:07.4]} 35... Qxe5 {[%clk 0:00:52.8]}
36. gxf4 {[%clk 0:00:06.8]} 36... Qe2 {[%clk 0:00:50.7]} 37. Rf2 {[%clk
0:00:06.1]} 37... Qe1+ {[%clk 0:00:51.1]} 38. Kg2 {[%clk 0:00:05.7]} 38... Bd3
{[%clk 0:00:47]} 39. a6 {[%clk 0:00:04.9]} 39... Rf6 {[%clk 0:00:47.1]} 40. Qd8+
{[%clk 0:00:04.1]} 40... Kh7 {[%clk 0:00:47.1]} 41. Kf3 {[%clk 0:00:01.8]} 41...
Rg6 {[%clk 0:00:44.3]} 42. f5 {[%clk 0:00:01.2]} 42... Be4+ {[%clk 0:00:39.5]}
43. Kf4 {[%clk 0:00:01.9]} 43... Qxf2+ {[%clk 0:00:39.3]} 44. Ke5 {[%clk
0:00:02.7]} 44... Qxh2+ {[%clk 0:00:39.4]} 45. Kd4 {[%clk 0:00:02.8]} 45...
Qxd2+ {[%clk 0:00:36.7]} 46. Kc5 {[%clk 0:00:02.6]} 46... Qf2+ {[%clk
0:00:35.6]} 47. Kc6 {[%clk 0:00:02.5]} 47... exf5+ {[%clk 0:00:35.4]} 48. Kc7
{[%clk 0:00:03.3]} 48... Qb6+ {[%clk 0:00:34.6]} 0-1

[Event "Late-Titled-Tuesday-Blitz-August-29-2023"]
[Site "Chess.com"]
[Date "2023.08.29"]
[Round "9"]
[White "TanitoluwaAps116"]
[Black "WPWPWP-2015"]
[Result "0-1"]
[WhiteElo "2751"]
[BlackElo "2576"]
[TimeControl "180+1"]
[EndTime "15:42:49 PDT"]
[Termination "WPWPWP-2015 won by resignation"]

1. e4 {[%clk 0:03:00.9]} 1... c5 {[%clk 0:02:44.2]} 2. Nf3 {[%clk 0:03:00.6]}
2... d6 {[%clk 0:02:44.3]} 3. Bb5+ {[%clk 0:03:00.2]} 3... Bd7 {[%clk
0:02:43.7]} 4. Bxd7+ {[%clk 0:02:57.6]} 4... Qxd7 {[%clk 0:02:43.8]} 5. c4
{[%clk 0:02:57.4]} 5... e6 {[%clk 0:02:42.9]} 6. d4 {[%clk 0:02:55.8]} 6... cxd4
{[%clk 0:02:42.7]} 7. Nxd4 {[%clk 0:02:56.7]} 7... Nc6 {[%clk 0:02:42.8]} 8. Nc3
{[%clk 0:02:57.1]} 8... Nf6 {[%clk 0:02:42.2]} 9. O-O {[%clk 0:02:57.2]} 9...
Be7 {[%clk 0:02:41.9]} 10. b3 {[%clk 0:02:56.3]} 10... O-O {[%clk 0:02:41.4]}
11. Bb2 {[%clk 0:02:56.8]} 11... Rfd8 {[%clk 0:02:41]} 12. Re1 {[%clk
0:02:57.4]} 12... a6 {[%clk 0:02:40.9]} 13. Na4 {[%clk 0:02:56.6]} 13... Qc7
{[%clk 0:02:40.4]} 14. Rc1 {[%clk 0:02:56.9]} 14... Rac8 {[%clk 0:02:39.7]} 15.
f3 {[%clk 0:02:43.1]} 15... Nd7 {[%clk 0:02:38.7]} 16. Ba3 {[%clk 0:02:38.1]}
16... h6 {[%clk 0:02:31.3]} 17. Kf1 {[%clk 0:02:18.3]} 17... Nce5 {[%clk
0:02:30.1]} 18. g3 {[%clk 0:02:12.2]} 18... Ng6 {[%clk 0:02:25.7]} 19. Kg2
{[%clk 0:02:09.5]} 19... Nf6 {[%clk 0:02:23.9]} 20. Qd2 {[%clk 0:02:06.4]} 20...
Nh5 {[%clk 0:02:16.5]} 21. f4 {[%clk 0:01:53.6]} 21... Nf6 {[%clk 0:02:16]} 22.
Qe2 {[%clk 0:01:46.5]} 22... h5 {[%clk 0:02:11.9]} 23. f5 {[%clk 0:01:45.2]}
23... Nf8 {[%clk 0:02:07.4]} 24. Rcd1 {[%clk 0:01:40.4]} 24... Qd7 {[%clk
0:01:51.6]} 25. Nb6 {[%clk 0:01:39.7]} 25... Qc7 {[%clk 0:01:49.2]} 26. Nxc8
{[%clk 0:01:36.1]} 26... Qxc8 {[%clk 0:01:48.2]} 27. fxe6 {[%clk 0:01:27.3]}
27... fxe6 {[%clk 0:01:46.8]} 28. e5 {[%clk 0:01:22.9]} 28... Ne8 {[%clk
0:01:40.4]} 29. exd6 {[%clk 0:01:14.6]} 29... Bxd6 {[%clk 0:01:40.3]} 30. Bxd6
{[%clk 0:01:13.9]} 30... Rxd6 {[%clk 0:01:40]} 31. Nf3 {[%clk 0:01:06.7]} 31...
Rb6 {[%clk 0:01:30.4]} 32. Qe3 {[%clk 0:01:02.2]} 32... Qc6 {[%clk 0:01:29.2]}
33. Rd8 {[%clk 0:00:58.8]} 33... Nf6 {[%clk 0:01:25]} 34. Red1 {[%clk
0:00:55.7]} 34... Kf7 {[%clk 0:01:18.5]} 35. Kg1 {[%clk 0:00:54.2]} 35... Qc7
{[%clk 0:01:09.8]} 36. Ng5+ {[%clk 0:00:46.6]} 36... Ke7 {[%clk 0:01:08.9]} 37.
Re8+ {[%clk 0:00:45.5]} 37... Kxe8 {[%clk 0:01:05.4]} 38. c5 {[%clk 0:00:27.3]}
38... Rc6 {[%clk 0:01:03.8]} 39. b4 {[%clk 0:00:26.8]} 39... b6 {[%clk
0:00:59.9]} 40. Rc1 {[%clk 0:00:20.5]} 40... bxc5 {[%clk 0:00:59.1]} 41. bxc5
{[%clk 0:00:21.4]} 41... Ke7 {[%clk 0:00:52.8]} 42. Nf3 {[%clk 0:00:17.9]} 42...
N8d7 {[%clk 0:00:33.7]} 43. Nd4 {[%clk 0:00:17.8]} 43... Rxc5 {[%clk 0:00:29]}
44. Qxe6+ {[%clk 0:00:17.5]} 44... Kf8 {[%clk 0:00:28.9]} 45. Re1 {[%clk
0:00:15.7]} 45... Re5 {[%clk 0:00:25.8]} 46. Re2 {[%clk 0:00:02.2]} 46... Qc1+
{[%clk 0:00:23.1]} 47. Kg2 {[%clk 0:00:02.6]} 47... Rxe6 {[%clk 0:00:22.8]} 48.
Nxe6+ {[%clk 0:00:03.5]} 48... Kg8 {[%clk 0:00:22.4]} 0-1

[Event "Late-Titled-Tuesday-Blitz-August-29-2023"]
[Site "Chess.com"]
[Date "2023.08.29"]
[Round "9"]
[White "Bauman_Guy"]
[Black "vladislavkovalev"]
[Result "1-0"]
[WhiteElo "2866"]
[BlackElo "2916"]
[TimeControl "180+1"]
[EndTime "15:42:55 PDT"]
[Termination "Bauman_Guy won by checkmate"]

1. e4 {[%clk 0:03:00.9]} 1... e5 {[%clk 0:02:59.9]} 2. Nf3 {[%clk 0:03:01]} 2...
Nc6 {[%clk 0:03:00.5]} 3. Bb5 {[%clk 0:03:01.7]} 3... a6 {[%clk 0:03:01.1]} 4.
Ba4 {[%clk 0:03:02.3]} 4... Nf6 {[%clk 0:03:01.6]} 5. O-O {[%clk 0:03:02.8]}
5... Be7 {[%clk 0:03:02.2]} 6. Re1 {[%clk 0:03:02.4]} 6... b5 {[%clk 0:03:02.6]}
7. Bb3 {[%clk 0:03:02.6]} 7... d6 {[%clk 0:03:03.3]} 8. c3 {[%clk 0:03:02]} 8...
O-O {[%clk 0:03:03.7]} 9. h3 {[%clk 0:03:02]} 9... Be6 {[%clk 0:03:04]} 10. Bc2
{[%clk 0:02:59.5]} 10... d5 {[%clk 0:03:01.1]} 11. exd5 {[%clk 0:02:55.1]} 11...
Qxd5 {[%clk 0:02:38.7]} 12. d3 {[%clk 0:02:51.4]} 12... Rad8 {[%clk 0:02:31.8]}
13. Nbd2 {[%clk 0:02:51.6]} 13... Bf5 {[%clk 0:02:31.3]} 14. Nf1 {[%clk
0:01:39.8]} 14... Bg6 {[%clk 0:01:34.7]} 15. a4 {[%clk 0:01:34.5]} 15... b4
{[%clk 0:01:29.3]} 16. Ne3 {[%clk 0:01:32.2]} 16... Qc5 {[%clk 0:01:17.4]} 17.
Bd2 {[%clk 0:01:10.1]} 17... bxc3 {[%clk 0:00:54.8]} 18. bxc3 {[%clk 0:01:07.7]}
18... Bxd3 {[%clk 0:00:53.5]} 19. Nf5 {[%clk 0:00:39.7]} 19... Rfe8 {[%clk
0:00:40.6]} 20. Qb1 {[%clk 0:00:31.1]} 20... e4 {[%clk 0:00:35.2]} 21. Nxe7+
{[%clk 0:00:31]} 21... Rxe7 {[%clk 0:00:36.1]} 22. Be3 {[%clk 0:00:15.4]} 22...
Qxc3 {[%clk 0:00:35.3]} 23. Bxd3 {[%clk 0:00:15.8]} 23... Qxd3 {[%clk
0:00:36.2]} 24. Nd2 {[%clk 0:00:14.8]} 24... Qxb1 {[%clk 0:00:29.3]} 25. Raxb1
{[%clk 0:00:15.7]} 25... Nd5 {[%clk 0:00:28.7]} 26. Nc4 {[%clk 0:00:15]} 26...
f5 {[%clk 0:00:26.9]} 27. g3 {[%clk 0:00:13.8]} 27... Ncb4 {[%clk 0:00:21.6]}
28. Bg5 {[%clk 0:00:12.9]} 28... Nd3 {[%clk 0:00:16.7]} 29. Bxe7 {[%clk
0:00:12.2]} 29... Nxe7 {[%clk 0:00:17]} 30. Red1 {[%clk 0:00:12.4]} 30... Nc6
{[%clk 0:00:11.8]} 31. Rb7 {[%clk 0:00:11.8]} 31... Nd4 {[%clk 0:00:12.3]} 32.
Kg2 {[%clk 0:00:10.3]} 32... Nf3 {[%clk 0:00:11.2]} 33. Ne3 {[%clk 0:00:09.1]}
33... c5 {[%clk 0:00:06.9]} 34. Rdb1 {[%clk 0:00:07.8]} 34... f4 {[%clk
0:00:04.8]} 35. Nf5 {[%clk 0:00:07.4]} 35... Nde1+ {[%clk 0:00:04.3]} 36. Kh1
{[%clk 0:00:07.7]} 36... fxg3 {[%clk 0:00:04.4]} 37. fxg3 {[%clk 0:00:08.6]}
37... g6 {[%clk 0:00:03.3]} 38. Nh6+ {[%clk 0:00:08.8]} 38... Kf8 {[%clk
0:00:03.9]} 39. Rf7+ {[%clk 0:00:08.5]} 39... Ke8 {[%clk 0:00:04.5]} 40. Rbb7
{[%clk 0:00:09]} 40... Rd2 {[%clk 0:00:04.3]} 41. Rfe7+ {[%clk 0:00:07.7]} 41...
Kd8 {[%clk 0:00:04.8]} 42. Nf7+ {[%clk 0:00:07.6]} 42... Kc8 {[%clk 0:00:04.5]}
43. Rec7# {[%clk 0:00:08.5]} 1-0

[Event "Late-Titled-Tuesday-Blitz-August-29-2023"]
[Site "Chess.com"]
[Date "2023.08.29"]
[Round "9"]
[White "Berardino"]
[Black "simplerXiao"]
[Result "1-0"]
[WhiteElo "2688"]
[BlackElo "2538"]
[TimeControl "180+1"]
[EndTime "15:43:03 PDT"]
[Termination "Berardino won by checkmate"]

1. e4 {[%clk 0:03:00.9]} 1... c5 {[%clk 0:02:55.6]} 2. Nf3 {[%clk 0:03:01]} 2...
e6 {[%clk 0:02:53.2]} 3. d4 {[%clk 0:03:01.4]} 3... cxd4 {[%clk 0:02:54]} 4.
Nxd4 {[%clk 0:03:01.8]} 4... d6 {[%clk 0:02:52]} 5. c4 {[%clk 0:02:59.5]} 5...
a6 {[%clk 0:02:48.3]} 6. Nc3 {[%clk 0:02:59.3]} 6... Qc7 {[%clk 0:02:49]} 7. Be2
{[%clk 0:02:58.9]} 7... Nf6 {[%clk 0:02:49.6]} 8. O-O {[%clk 0:02:58.4]} 8... g6
{[%clk 0:02:50.3]} 9. Be3 {[%clk 0:02:48.7]} 9... Bg7 {[%clk 0:02:49.7]} 10. Rc1
{[%clk 0:02:49.3]} 10... O-O {[%clk 0:02:49.5]} 11. Qd2 {[%clk 0:02:47.9]} 11...
Rd8 {[%clk 0:02:49]} 12. Rfd1 {[%clk 0:02:48]} 12... b6 {[%clk 0:02:42.3]} 13.
f3 {[%clk 0:02:47.7]} 13... Bb7 {[%clk 0:02:42.3]} 14. Bf1 {[%clk 0:02:48.4]}
14... Nbd7 {[%clk 0:02:40.8]} 15. b4 {[%clk 0:02:44.1]} 15... Ne5 {[%clk
0:02:39.6]} 16. Qf2 {[%clk 0:02:34.9]} 16... Rab8 {[%clk 0:02:32.1]} 17. a3
{[%clk 0:02:32.2]} 17... Ba8 {[%clk 0:02:31.2]} 18. Na4 {[%clk 0:02:22.1]} 18...
Qe7 {[%clk 0:02:18.5]} 19. Nb3 {[%clk 0:02:16]} 19... Nxc4 {[%clk 0:02:09.4]}
20. Bxc4 {[%clk 0:01:43.3]} 20... b5 {[%clk 0:02:09.2]} 21. Na5 {[%clk
0:01:31.6]} 21... bxc4 {[%clk 0:02:06.9]} 22. Nb6 {[%clk 0:01:24.6]} 22... d5
{[%clk 0:02:04.1]} 23. Nxa8 {[%clk 0:01:23.4]} 23... Rxa8 {[%clk 0:01:58.3]} 24.
Nc6 {[%clk 0:01:22.5]} 24... Qb7 {[%clk 0:01:55.1]} 25. Nxd8 {[%clk 0:01:22.2]}
25... Rxd8 {[%clk 0:01:54]} 26. Rxc4 {[%clk 0:01:19.3]} 26... Re8 {[%clk
0:01:50.1]} 27. exd5 {[%clk 0:01:12]} 27... Nxd5 {[%clk 0:01:49.8]} 28. Bd4
{[%clk 0:01:09.4]} 28... e5 {[%clk 0:01:48.6]} 29. Bb2 {[%clk 0:01:03.1]} 29...
Nb6 {[%clk 0:01:46.5]} 30. Re4 {[%clk 0:00:54.6]} 30... f5 {[%clk 0:01:43.8]}
31. Re2 {[%clk 0:00:54]} 31... Nc4 {[%clk 0:01:39.8]} 32. Qc5 {[%clk 0:00:48.3]}
32... Nxb2 {[%clk 0:01:26.6]} 33. Rxb2 {[%clk 0:00:47.9]} 33... e4 {[%clk
0:01:24.4]} 34. Re2 {[%clk 0:00:47.3]} 34... Kh8 {[%clk 0:01:03.7]} 35. fxe4
{[%clk 0:00:44.8]} 35... fxe4 {[%clk 0:01:02.8]} 36. Kh1 {[%clk 0:00:41.2]}
36... h6 {[%clk 0:01:01.5]} 37. Qd5 {[%clk 0:00:40.5]} 37... Qc7 {[%clk
0:00:34.7]} 38. Rxe4 {[%clk 0:00:34.1]} 38... Rf8 {[%clk 0:00:34.2]} 39. h3
{[%clk 0:00:29.4]} 39... Qc3 {[%clk 0:00:31.6]} 40. Qd3 {[%clk 0:00:23.8]} 40...
Qb2 {[%clk 0:00:28.5]} 41. Rde1 {[%clk 0:00:20.4]} 41... Rf2 {[%clk 0:00:24.1]}
42. Rg4 {[%clk 0:00:14.8]} 42... Rf6 {[%clk 0:00:13]} 43. Rxg6 {[%clk
0:00:11.8]} 43... Qf2 {[%clk 0:00:12.8]} 44. Re8+ {[%clk 0:00:10.6]} 44... Bf8
{[%clk 0:00:13]} 45. Rxf6 {[%clk 0:00:10.6]} 45... Qxf6 {[%clk 0:00:12.1]} 46.
Qf3 {[%clk 0:00:08.5]} 46... Qa1+ {[%clk 0:00:11]} 47. Kh2 {[%clk 0:00:08.5]}
47... Kh7 {[%clk 0:00:07.3]} 48. Rxf8 {[%clk 0:00:06.8]} 48... Qxa3 {[%clk
0:00:06.8]} 49. Qf7# {[%clk 0:00:05.5]} 1-0

[Event "Late-Titled-Tuesday-Blitz-August-29-2023"]
[Site "Chess.com"]
[Date "2023.08.29"]
[Round "9"]
[White "Dr_crypt"]
[Black "Michalczak"]
[Result "0-1"]
[WhiteElo "2341"]
[BlackElo "2515"]
[TimeControl "180+1"]
[EndTime "15:43:03 PDT"]
[Termination "Michalczak won on time"]

1. d4 {[%clk 0:03:00]} 1... Nf6 {[%clk 0:02:59.6]} 2. c4 {[%clk 0:03:00.5]} 2...
e6 {[%clk 0:03:00.2]} 3. Nc3 {[%clk 0:02:59.9]} 3... d5 {[%clk 0:03:00.4]} 4.
cxd5 {[%clk 0:03:00.2]} 4... exd5 {[%clk 0:03:00.7]} 5. Bg5 {[%clk 0:03:00.9]}
5... c6 {[%clk 0:03:01]} 6. e3 {[%clk 0:03:01.7]} 6... Nbd7 {[%clk 0:02:55]} 7.
Bd3 {[%clk 0:03:01.3]} 7... Be7 {[%clk 0:02:55.1]} 8. Nge2 {[%clk 0:03:01.1]}
8... Nh5 {[%clk 0:02:54.3]} 9. Bxe7 {[%clk 0:02:56.2]} 9... Qxe7 {[%clk
0:02:55.2]} 10. Qc2 {[%clk 0:02:46.8]} 10... g6 {[%clk 0:02:54.8]} 11. g4 {[%clk
0:02:44.9]} 11... Nhf6 {[%clk 0:02:53.7]} 12. h3 {[%clk 0:02:41.2]} 12... Nb6
{[%clk 0:02:42.9]} 13. O-O-O {[%clk 0:02:39.6]} 13... h5 {[%clk 0:02:40.4]} 14.
g5 {[%clk 0:02:31.4]} 14... Nfd7 {[%clk 0:02:39.4]} 15. h4 {[%clk 0:02:28]}
15... Nf8 {[%clk 0:02:33.9]} 16. Nf4 {[%clk 0:02:27.5]} 16... Be6 {[%clk
0:02:29.2]} 17. Nxe6 {[%clk 0:02:05.7]} 17... Nxe6 {[%clk 0:02:27.3]} 18. f4
{[%clk 0:01:53.4]} 18... Nc7 {[%clk 0:02:15.2]} 19. e4 {[%clk 0:01:51.5]} 19...
dxe4 {[%clk 0:02:13.4]} 20. Bxe4 {[%clk 0:01:49.9]} 20... O-O-O {[%clk
0:02:07.3]} 21. Rhe1 {[%clk 0:01:49.7]} 21... Qd6 {[%clk 0:02:04]} 22. Qf2
{[%clk 0:01:44.9]} 22... Rhe8 {[%clk 0:01:53.9]} 23. f5 {[%clk 0:01:43]} 23...
Ncd5 {[%clk 0:01:52.4]} 24. fxg6 {[%clk 0:01:37.5]} 24... fxg6 {[%clk 0:01:42]}
25. Nxd5 {[%clk 0:01:10.8]} 25... Nxd5 {[%clk 0:01:42.9]} 26. Kb1 {[%clk
0:01:08.2]} 26... Re6 {[%clk 0:01:21.6]} 27. Bc2 {[%clk 0:01:04.6]} 27... Rde8
{[%clk 0:01:19.6]} 28. Rxe6 {[%clk 0:01:03]} 28... Qxe6 {[%clk 0:01:20.2]} 29.
Rf1 {[%clk 0:00:51.4]} 29... Nb4 {[%clk 0:01:13.2]} 30. Bb3 {[%clk 0:00:46.2]}
30... Qe4+ {[%clk 0:01:13.2]} 31. Ka1 {[%clk 0:00:46]} 31... Nd3 {[%clk
0:01:10]} 32. Qf7 {[%clk 0:00:39.3]} 32... Qe1+ {[%clk 0:00:43.4]} 33. Bd1
{[%clk 0:00:37.2]} 33... Qe3 {[%clk 0:00:43.6]} 34. Bc2 {[%clk 0:00:30.1]} 34...
Ne1 {[%clk 0:00:38.1]} 35. Qxg6 {[%clk 0:00:22]} 35... Qc1+ {[%clk 0:00:20.5]}
36. Bb1 {[%clk 0:00:21.7]} 36... Nc2+ {[%clk 0:00:21.2]} 37. Qxc2 {[%clk
0:00:22.2]} 37... Qxf1 {[%clk 0:00:21.6]} 38. g6 {[%clk 0:00:17.2]} 38... Re2
{[%clk 0:00:13.9]} 39. Qc4 {[%clk 0:00:11.1]} 39... Re1 {[%clk 0:00:10.3]} 40.
Qxf1 {[%clk 0:00:03.6]} 40... Rxf1 {[%clk 0:00:11.2]} 0-1

[Event "Late-Titled-Tuesday-Blitz-August-29-2023"]
[Site "Chess.com"]
[Date "2023.08.29"]
[Round "9"]
[White "SergioMoralesG"]
[Black "TheMagician"]
[Result "0-1"]
[WhiteElo "2387"]
[BlackElo "2160"]
[TimeControl "180+1"]
[EndTime "15:43:05 PDT"]
[Termination "TheMagician won on time"]

1. d4 {[%clk 0:03:00.9]} 1... Nf6 {[%clk 0:02:59]} 2. c4 {[%clk 0:03:01]} 2...
e6 {[%clk 0:02:58.4]} 3. Nf3 {[%clk 0:03:01.1]} 3... d5 {[%clk 0:02:58.5]} 4.
Nc3 {[%clk 0:03:01.3]} 4... Be7 {[%clk 0:02:56.2]} 5. Bf4 {[%clk 0:03:01]} 5...
O-O {[%clk 0:02:55.6]} 6. h3 {[%clk 0:03:00.4]} 6... c5 {[%clk 0:02:54.5]} 7. e3
{[%clk 0:02:58]} 7... Nc6 {[%clk 0:02:48.6]} 8. dxc5 {[%clk 0:02:54.4]} 8...
Bxc5 {[%clk 0:02:47.5]} 9. Be2 {[%clk 0:02:51.5]} 9... d4 {[%clk 0:02:47.2]} 10.
exd4 {[%clk 0:02:45]} 10... Nxd4 {[%clk 0:02:47.2]} 11. Nxd4 {[%clk 0:02:45]}
11... Qxd4 {[%clk 0:02:42.4]} 12. Bg3 {[%clk 0:02:25.4]} 12... Bd7 {[%clk
0:02:35]} 13. O-O {[%clk 0:02:19.9]} 13... Bc6 {[%clk 0:02:34.3]} 14. Qxd4
{[%clk 0:02:08.7]} 14... Bxd4 {[%clk 0:02:33.7]} 15. Rac1 {[%clk 0:02:09.2]}
15... Ne4 {[%clk 0:02:21.8]} 16. Nxe4 {[%clk 0:01:59.4]} 16... Bxe4 {[%clk
0:02:21.7]} 17. b3 {[%clk 0:01:59.8]} 17... e5 {[%clk 0:02:17.4]} 18. Rcd1
{[%clk 0:01:56.3]} 18... Rad8 {[%clk 0:02:01.3]} 19. Kh2 {[%clk 0:01:49.7]}
19... f5 {[%clk 0:02:01.2]} 20. Bd3 {[%clk 0:01:28.2]} 20... Bxd3 {[%clk
0:01:40.1]} 21. Rxd3 {[%clk 0:01:27.8]} 21... e4 {[%clk 0:01:40.3]} 22. Rd2
{[%clk 0:01:20]} 22... Bc5 {[%clk 0:01:20.3]} 23. Rfd1 {[%clk 0:01:07.9]} 23...
Rxd2 {[%clk 0:01:19.8]} 24. Rxd2 {[%clk 0:01:08.8]} 24... f4 {[%clk 0:01:19.1]}
25. Bh4 {[%clk 0:01:08.9]} 25... h6 {[%clk 0:01:15.5]} 26. Rd5 {[%clk
0:01:03.6]} 26... b6 {[%clk 0:01:11.8]} 27. b4 {[%clk 0:00:25.4]} 27... Bxb4
{[%clk 0:01:05.3]} 28. Bd8 {[%clk 0:00:23.5]} 28... Bc5 {[%clk 0:00:58.3]} 29.
f3 {[%clk 0:00:12.5]} 29... exf3 {[%clk 0:00:44.6]} 30. gxf3 {[%clk 0:00:12.1]}
30... Bf2 {[%clk 0:00:42.6]} 31. Kg2 {[%clk 0:00:11]} 31... Bg3 {[%clk 0:00:42]}
32. Rd7 {[%clk 0:00:09.9]} 32... Re8 {[%clk 0:00:40.7]} 33. Be7 {[%clk
0:00:10.1]} 33... Kf7 {[%clk 0:00:37.3]} 34. Bb4+ {[%clk 0:00:09]} 34... Kg6
{[%clk 0:00:25.4]} 35. Rxa7 {[%clk 0:00:08.8]} 35... Re2+ {[%clk 0:00:23.6]} 36.
Kf1 {[%clk 0:00:09]} 36... Rf2+ {[%clk 0:00:22.2]} 37. Kg1 {[%clk 0:00:08.7]}
37... Rxf3 {[%clk 0:00:21.4]} 38. Rb7 {[%clk 0:00:05.4]} 38... Rd3 {[%clk
0:00:16.2]} 39. Rxb6+ {[%clk 0:00:04.4]} 39... Kh5 {[%clk 0:00:16.2]} 40. a4
{[%clk 0:00:04.6]} 40... f3 {[%clk 0:00:14.7]} 41. Rb5+ {[%clk 0:00:01.4]} 41...
g5 {[%clk 0:00:13.7]} 42. Rd5 {[%clk 0:00:02.1]} 42... Rb3 {[%clk 0:00:14]} 43.
Bd2 {[%clk 0:00:01.4]} 43... Rb1+ {[%clk 0:00:13.5]} 0-1

[Event "Late-Titled-Tuesday-Blitz-August-29-2023"]
[Site "Chess.com"]
[Date "2023.08.29"]
[Round "9"]
[White "rochaaaaaaaaaa"]
[Black "Schwindle"]
[Result "1-0"]
[WhiteElo "2254"]
[BlackElo "2391"]
[TimeControl "180+1"]
[EndTime "15:43:07 PDT"]
[Termination "rochaaaaaaaaaa won by resignation"]

1. e4 {[%clk 0:03:00.9]} 1... e6 {[%clk 0:02:59.8]} 2. d4 {[%clk 0:03:00.9]}
2... d5 {[%clk 0:03:00]} 3. Nc3 {[%clk 0:03:01.3]} 3... Nf6 {[%clk 0:03:00.4]}
4. e5 {[%clk 0:03:01.6]} 4... Ne4 {[%clk 0:03:01]} 5. Nxe4 {[%clk 0:03:01.3]}
5... dxe4 {[%clk 0:03:01.6]} 6. Bc4 {[%clk 0:03:02]} 6... a6 {[%clk 0:03:01.3]}
7. c3 {[%clk 0:02:55]} 7... b5 {[%clk 0:02:50.9]} 8. Bb3 {[%clk 0:02:54.9]} 8...
c5 {[%clk 0:02:47.9]} 9. Ne2 {[%clk 0:02:45.7]} 9... Bb7 {[%clk 0:02:37.9]} 10.
O-O {[%clk 0:02:44.8]} 10... Be7 {[%clk 0:02:33.8]} 11. Ng3 {[%clk 0:02:42.8]}
11... cxd4 {[%clk 0:02:15.2]} 12. cxd4 {[%clk 0:02:40.2]} 12... Nc6 {[%clk
0:02:09.4]} 13. Be3 {[%clk 0:02:39.6]} 13... Nb4 {[%clk 0:02:02.5]} 14. Qg4
{[%clk 0:02:31.1]} 14... g6 {[%clk 0:01:58.4]} 15. Nxe4 {[%clk 0:02:25.8]} 15...
h5 {[%clk 0:01:55.4]} 16. Qf3 {[%clk 0:02:25.4]} 16... Nd5 {[%clk 0:01:48.4]}
17. Rfe1 {[%clk 0:02:14.6]} 17... a5 {[%clk 0:01:41.8]} 18. Nc3 {[%clk
0:01:57.6]} 18... O-O {[%clk 0:01:23.5]} 19. Nxd5 {[%clk 0:01:57.6]} 19... exd5
{[%clk 0:01:19.6]} 20. Bh6 {[%clk 0:01:57]} 20... Re8 {[%clk 0:01:17.2]} 21. e6
{[%clk 0:01:55.2]} 21... f5 {[%clk 0:01:13.8]} 22. Bf4 {[%clk 0:01:51.7]} 22...
Bb4 {[%clk 0:01:10.8]} 23. Re3 {[%clk 0:01:48.8]} 23... Qf6 {[%clk 0:01:08.9]}
24. Bxd5 {[%clk 0:01:42.4]} 24... Bxd5 {[%clk 0:01:07.6]} 25. Qxd5 {[%clk
0:01:43.3]} 25... Rad8 {[%clk 0:01:07.8]} 26. Qb3 {[%clk 0:01:38.8]} 26... Qxd4
{[%clk 0:00:58.6]} 27. Be5 {[%clk 0:01:00.6]} 27... Qd5 {[%clk 0:00:51.6]} 28.
Qxd5 {[%clk 0:00:56.1]} 28... Rxd5 {[%clk 0:00:52.5]} 29. Bc3 {[%clk 0:00:51.7]}
29... Bc5 {[%clk 0:00:49.9]} 30. Re2 {[%clk 0:00:50.2]} 30... b4 {[%clk
0:00:45.8]} 31. Bf6 {[%clk 0:00:48.6]} 31... Bd4 {[%clk 0:00:40]} 32. Bxd4
{[%clk 0:00:47.1]} 32... Rxd4 {[%clk 0:00:40.5]} 33. g3 {[%clk 0:00:46.7]} 33...
Re4 {[%clk 0:00:37.4]} 34. Rxe4 {[%clk 0:00:44.2]} 34... fxe4 {[%clk 0:00:38.3]}
35. Re1 {[%clk 0:00:42.7]} 35... Rxe6 {[%clk 0:00:38.3]} 36. f3 {[%clk
0:00:43.1]} 36... Kf7 {[%clk 0:00:29.8]} 37. Rxe4 {[%clk 0:00:42.2]} 37... Rc6
{[%clk 0:00:28]} 38. Kf2 {[%clk 0:00:42.2]} 38... Kf6 {[%clk 0:00:22.3]} 39. f4
{[%clk 0:00:39.6]} 39... Rc2+ {[%clk 0:00:20.8]} 40. Re2 {[%clk 0:00:39.8]}
40... Rc1 {[%clk 0:00:21.1]} 41. Ke3 {[%clk 0:00:38.5]} 41... Rh1 {[%clk
0:00:19.7]} 42. Ke4 {[%clk 0:00:37.2]} 42... Ra1 {[%clk 0:00:19.1]} 43. b3
{[%clk 0:00:36.9]} 43... Rc1 {[%clk 0:00:13.8]} 44. Kd5 {[%clk 0:00:32]} 44...
Kf5 {[%clk 0:00:14.2]} 45. Re5+ {[%clk 0:00:26.8]} 45... Kf6 {[%clk 0:00:14.7]}
46. Re2 {[%clk 0:00:24.4]} 46... Kf5 {[%clk 0:00:14.3]} 47. Kd4 {[%clk
0:00:18.5]} 47... Kg4 {[%clk 0:00:13.9]} 48. Kd3 {[%clk 0:00:17.7]} 48... Ra1
{[%clk 0:00:12.1]} 49. Kc4 {[%clk 0:00:16.4]} 49... Kf3 {[%clk 0:00:11]} 50. Rb2
{[%clk 0:00:14]} 50... Kg4 {[%clk 0:00:09.7]} 51. Kb5 {[%clk 0:00:14.1]} 1-0